bitfinex/quotes_ETHUSD_20260304
["timestamp","ask_amount","ask_price","bid_price","bid_amount"]
[1772600421594,0.002,1961.5,1961.2,1.04868423]
[1772600421796,0.001,1961.4,1961.2,1.04868423]
[1772600422026,0.002,1961.6,1961.4,1.04868423]
[1772600423621,0.002,1961.6,1961.4,2.3232773]
[1772600424005,1.15747081,1961.6,1961.2,1.04868423]
[1772600424205,1.15747081,1961.6,1961.1,0.0011]
[1772600424601,1.15747081,1961.6,1961.1,2.32456763]
[1772600424826,1.15747081,1961.6,1961.2,1.04868423]
[1772600425129,0.002,1961.6,1961.2,1.04868423]
[1772600426104,0.002,1961.6,1961.4,1.04868423]
[1772600427013,0.002,1961.8,1961.4,1.04868423]
[1772600429041,0.002,1961.8,1961.6,1.04868423]
[1772600429700,1.15747081,1962.2,1961.6,1.04868423]
[1772600430048,0.002,1962.2,1961.6,1.04868423]
[1772600430832,0.002,1962.2,1961.7,1.04868423]
[1772600431113,0.002,1962.2,1961.8,1.27433989]
[1772600431318,0.002,1962.2,1961.8,2.32302412]
[1772600431521,0.002,1962.2,1961.9,1.04868423]
[1772600431832,1.15747081,1962.4,1961.9,1.04868423]
[1772600431833,0.002,1962.4,1961.9,1.04868423]
[1772600432401,1.15547081,1962.3,1961.6,2.32314507]
[1772600432708,1.15547081,1962.3,1961.7,1.04868423]
[1772600433120,1.27408011,1962.2,1961.7,2.32307167]
[1772600433322,2.43142699,1962.4,1961.8,1.04868423]
[1772600433509,0.001,1962.1,1961.8,1.04868423]
[1772600433908,0.002,1962.4,1961.9,1.04868423]
[1772600435206,0.002,1962.4,1962.2,1.04868423]
[1772600436903,1.15547081,1962.8,1962.2,1.04868423]
[1772600437110,1.15547081,1962.7,1962.2,1.04868423]
[1772600437314,1.15547081,1962.7,1962.3,2.32269941]
[1772600438714,1.15547081,1963.1,1962.4,1.04868423]
[1772600439736,1.15547081,1963.1,1962.3,1.04868423]
[1772600439737,1.15547081,1962.9,1962.3,1.04868423]
[1772600441658,2.42916145,1962.8,1962.3,1.04868423]
[1772600441836,1.15547081,1962.7,1962.3,1.04868423]
[1772600442152,1.15547081,1962.7,1962.1,1.04868423]
[1772600442325,1.15547081,1962.7,1961.9,6.19292714]
[1772600443044,1.15547081,1962.7,1962.0,1.04868423]
[1772600444431,1.15547081,1962.5,1962.0,1.04868423]
[1772600444637,1.15547081,1962.5,1961.4,1.04868423]
[1772600444940,2.57281646,1962.6,1961.4,1.04868423]
[1772600444941,1.15547081,1962.3,1961.4,1.04868423]
[1772600445140,1.15547081,1962.3,1961.3,1.27465055]
[1772600445335,1.15547081,1962.3,1962.0,0.001]
[1772600446040,1.59071782,1962.6,1961.9,0.001]
[1772600446041,1.15547081,1962.1,1961.9,0.001]
[1772600446410,2.42968079,1962.0,1961.9,0.001]
[1772600447844,1.15547081,1961.9,1961.7,0.001]
[1772600448642,1.27433989,1961.8,1961.2,1.07489142]
[1772600448845,1.09148741,1961.7,1961.2,1.07489142]
[1772600449344,1.09148741,1961.7,1961.1,1.27588908]
[1772600449645,1.09148741,1961.7,1961.2,1.07489142]
[1772600450521,1.27446982,1961.6,1961.2,1.07489142]
[1772600451267,1.09148741,1961.7,1961.2,2.34962112]
[1772600451421,2.3658925,1961.7,1961.3,1.07489142]
[1772600451855,1.09148741,1961.7,1961.3,1.07489142]
[1772600452358,2.36590005,1961.7,1961.3,1.07489142]
[1772600455367,1.09148741,1961.9,1961.2,1.07489142]
[1772600455531,1.09148741,1961.7,1961.1,0.0011]
[1772600455730,1.09148741,1961.5,1961.0,0.0011]
[1772600455956,2.11304475,1961.6,1961.0,0.0011]
[1772600455957,1.09148741,1961.3,1961.0,0.0011]
[1772600457733,2.36607194,1961.5,1961.0,1.07599142]
[1772600458156,2.36607194,1961.5,1961.3,0.0011]
[1772600458836,1.09148741,1961.5,1961.3,0.0011]
[1772600459165,1.27550045,1961.6,1961.3,0.0011]
[1772600460059,1.27550045,1961.6,1961.3,1.07599142]
[1772600460060,0.001,1961.6,1961.3,1.07599142]
[1772600460261,1.09148741,1961.9,1961.3,1.07599142]
[1772600460564,1.27424263,1962.0,1961.3,1.07599142]
[1772600460953,2.36573004,1962.0,1961.3,1.07599142]
[1772600461129,1.09148741,1961.9,1961.3,1.07599142]
[1772600462164,2.36576555,1961.9,1961.4,2.34949119]
[1772600462368,1.09148741,1962.1,1961.5,1.07489142]
[1772600462861,2.36564782,1962.1,1961.5,1.07489142]
[1772600463035,2.36563365,1962.1,1961.5,1.07489142]
[1772600463766,2.36564134,1962.1,1961.5,1.07489142]
[1772600464431,1.09148741,1962.0,1961.5,2.34941646]
[1772600464963,1.09148741,1962.0,1961.5,1.07489142]
[1772600465133,1.09148741,1962.0,1961.5,2.34942307]
[1772600466862,1.09148741,1962.0,1961.6,1.07489142]
[1772600467065,2.36570972,1962.0,1961.6,1.07489142]
[1772600468373,2.36570972,1962.0,1961.3,0.0011]
[1772600468374,1.09148741,1961.9,1961.4,1.07489142]
[1772600469057,1.09148741,1961.9,1961.4,2.34943653]
[1772600469266,1.09148741,1961.9,1961.5,1.07489142]
[1772600469948,1.09148741,1962.5,1961.5,1.07489142]
[1772600470156,5.09589827,1962.4,1961.5,1.07489142]
[1772600470369,1.3008095,1962.2,1961.4,0.0011]
[1772600470569,6.39670777,1962.4,1961.4,0.0011]
[1772600470570,1.09148741,1961.9,1961.4,0.0011]
[1772600471171,1.09148741,1962.1,1961.4,1.07599142]
[1772600473071,1.09148741,1961.9,1961.4,2.35057465]
[1772600473793,1.09148741,1961.9,1961.4,2.35058294]
[1772600474978,1.27433989,1961.8,1961.4,0.0011]
[1772600475143,2.3658273,1961.8,1961.4,1.07599142]
[1772600475579,1.09148741,1961.7,1961.4,0.0011]
[1772600476783,1.594,1962.0,1961.4,1.07599142]
[1772600476987,1.09148741,1961.9,1961.4,1.07599142]
[1772600477285,1.09148741,1961.9,1961.5,1.07489142]
[1772600477651,2.36577198,1961.9,1961.5,1.07489142]
[1772600477960,1.09148741,1961.8,1961.4,0.0011]
[1772600479575,2.36586615,1961.8,1961.4,0.0011]
[1772600479769,0.93556043,1962.0,1961.4,0.99965086]
[1772600480084,0.93556043,1961.9,1961.4,0.99965086]
[1772600480487,0.93556043,1961.9,1961.4,0.5211694]
[1772600480693,0.93556043,1961.9,1961.5,0.97975505]
[1772600481371,2.20970547,1962.1,1961.5,0.97975505]
[1772600481774,2.20970547,1962.1,1961.6,0.97975505]
[1772600482166,0.93556043,1962.0,1961.6,0.97975505]
[1772600482497,0.001,1961.8,1961.6,0.84874062]
[1772600484295,0.001,1961.8,1961.7,0.97975505]
[1772600484468,0.93556043,1962.2,1961.7,0.97975505]
[1772600486794,2.20968478,1962.2,1961.8,0.97975505]
[1772600487594,2.20968478,1962.2,1961.5,1.27558971]
[1772600487595,0.93556043,1962.1,1961.6,0.97975505]
[1772600489394,2.20970669,1962.1,1961.7,0.97975505]
[1772600491096,0.93556043,1962.0,1961.5,0.98085505]
[1772600491328,0.93556043,1962.0,1961.6,2.25422336]
[1772600491475,0.93556043,1962.0,1961.6,0.97975505]
[1772600492502,0.93556043,1962.0,1961.6,2.25422398]
[1772600492703,5.09632962,1962.2,1961.6,2.25422398]
[1772600492704,2.20967395,1962.2,1961.7,0.97975505]
[1772600493203,0.93556043,1962.2,1961.7,0.97975505]
[1772600493385,0.93556043,1962.2,1961.9,0.97975505]
[1772600495007,1.27406434,1962.3,1961.9,0.97975505]
[1772600495303,2.20962477,1962.3,1961.9,0.97975505]
[1772600496205,0.93556043,1962.2,1961.9,0.97975505]
[1772600496905,0.93556043,1962.2,1961.7,1.27435754]
[1772600497112,0.93556043,1962.2,1961.6,0.47907459]
[1772600498316,0.93556043,1962.0,1961.6,0.47907459]
[1772600499921,0.93556043,1962.0,1961.6,1.75353636]
[1772600500296,2.20977761,1962.0,1961.6,0.47907459]
[1772600500615,0.93556043,1961.9,1961.5,0.0011]
[1772600501209,0.93556043,1961.9,1961.4,0.0011]
[1772600501819,0.93556043,1961.8,1961.4,0.0011]
[1772600502418,0.93556043,1961.6,1961.4,0.0011]
[1772600502792,0.93556043,1961.6,1961.2,0.0011]
[1772600503009,0.93556043,1961.4,1961.2,0.0011]
[1772600504912,2.2101658,1961.4,1961.2,0.0011]
[1772600505411,2.21016614,1961.4,1961.2,0.0011]
[1772600505916,0.93556043,1961.3,1961.2,0.0011]
[1772600507723,3.80409737,1961.5,1961.2,0.0011]
[1772600507921,2.67247537,1961.8,1961.2,0.46094916]
[1772600507922,1.27439,1961.8,1961.2,0.46094916]
[1772600508219,3.80495043,1961.8,1961.2,0.46094916]
[1772600508423,0.94111856,1961.7,1961.2,0.46094916]
[1772600508825,2.21554914,1961.7,1961.2,1.27581061]
[1772600508994,2.21554914,1961.7,1961.3,0.45642395]
[1772600509421,1.595,1961.8,1961.3,0.45642395]
[1772600509622,2.8693535,1961.8,1961.3,0.45642395]
[1772600510124,0.94111856,1961.7,1961.3,0.45642395]
[1772600510327,0.94111856,1961.7,1961.2,0.0011]
[1772600510710,0.94111856,1961.7,1961.2,1.27582662]
[1772600510904,0.94111856,1961.6,1961.2,1.72889893]
[1772600511106,0.94111856,1961.6,1961.2,0.45417231]
[1772600512311,3.81146057,1961.8,1961.3,0.45142491]
[1772600512632,0.94111856,1961.7,1961.3,0.45142491]
[1772600513013,2.21553686,1961.7,1961.3,0.45142491]
[1772600514420,2.21553686,1961.7,1961.2,0.0011]
[1772600514421,0.94111856,1961.6,1961.2,0.0011]
[1772600515152,2.21564045,1961.6,1961.2,0.0011]
[1772600515322,2.21564045,1961.6,1961.2,0.44769364]
[1772600516313,1.2744362,1961.7,1961.2,0.44769364]
[1772600516509,2.21742376,1961.9,1961.2,0.44769364]
[1772600516705,0.94311856,1961.9,1961.2,0.44769364]
[1772600517673,0.002,1961.9,1961.4,0.44347881]
[1772600519342,0.001,1961.8,1961.4,0.44347881]
[1772600519859,0.001,1961.8,1961.6,0.44042333]
[1772600521462,0.002,1961.9,1961.7,0.43645146]
[1772600521983,0.002,1961.9,1961.5,0.43499506]
[1772600522145,0.94311856,1961.9,1961.3,0.0011]
[1772600522463,0.94311856,1961.9,1961.3,1.71074141]
[1772600522665,0.94311856,1961.9,1961.3,0.43609506]
[1772600523247,0.94311856,1961.9,1961.3,0.0011]
[1772600523663,0.94111856,1961.8,1961.3,0.0011]
[1772600523875,0.94111856,1961.6,1961.3,0.0011]
[1772600526371,2.21565335,1961.5,1961.3,0.0011]
[1772600527968,0.94111856,1961.4,1961.3,0.0011]
[1772600528337,2.21571833,1961.4,1961.3,0.0011]
[1772600529039,0.94111856,1961.3,1961.1,0.0011]
[1772600530970,1.27472975,1961.2,1961.1,0.0011]
[1772600531153,2.21584831,1961.2,1961.1,0.0011]
[1772600531840,1.27472975,1961.2,1961.1,0.0011]
[1772600532879,0.94111856,1961.1,1960.8,0.0011]
[1772600533099,2.21597832,1961.0,1960.8,0.0011]
[1772600533258,5.09866749,1961.3,1960.8,0.0011]
[1772600533259,2.21589807,1961.2,1960.8,0.0011]
[1772600534378,0.94111856,1961.5,1960.8,0.42087671]
[1772600534552,2.54011856,1961.3,1960.8,0.42087671]
[1772600535173,3.81482679,1961.3,1960.8,0.42087671]
[1772600535347,3.81482679,1961.3,1960.9,0.41851508]
[1772600535744,2.54011856,1961.3,1960.9,0.41851508]
[1772600535964,1.599,1961.3,1960.9,0.41851508]
[1772600536154,2.87367125,1961.3,1960.8,0.4183798]
[1772600536358,3.81478981,1961.3,1960.8,0.4183798]
[1772600536558,0.94111856,1961.2,1960.8,0.4183798]
[1772600536773,0.94111856,1961.4,1960.8,0.4183798]
[1772600536965,2.21752821,1961.7,1960.9,0.41605845]
[1772600537374,0.94111856,1961.6,1961.1,0.41605845]
[1772600537575,0.002,1961.7,1961.1,0.41605845]
[1772600537975,0.002,1961.7,1961.2,0.41484497]
[1772600538354,0.002,1961.8,1961.2,0.411642]
[1772600539483,0.95748652,1961.8,1961.0,1.68525509]
[1772600539683,0.95748652,1961.8,1961.1,0.41045542]
[1772600541978,1.27440485,1961.7,1961.1,1.27473908]
[1772600542165,0.94931397,1961.7,1961.2,0.40584038]
[1772600542363,2.22570013,1961.8,1961.2,0.40584038]
[1772600543058,0.002,1961.8,1961.2,0.40584038]
[1772600543265,1.27634127,1961.8,1961.2,0.40584038]
[1772600543652,2.22565524,1961.8,1961.2,0.40584038]
[1772600543953,0.94931397,1961.5,1961.0,0.40362312]
[1772600545084,0.94931397,1961.5,1960.9,0.0011]
[1772600546147,0.94931397,1961.3,1960.9,0.0011]
[1772600548281,2.22401121,1961.3,1960.9,0.0011]
[1772600549283,0.94931397,1961.2,1960.9,0.0011]
[1772600549690,0.94931397,1961.2,1960.7,0.0011]
[1772600550361,0.94931397,1961.0,1960.7,0.0011]
[1772600553192,0.94931397,1960.8,1960.5,0.001]
[1772600555201,1.27495575,1960.9,1960.5,0.001]
[1772600555385,0.94931397,1960.8,1960.5,0.001]
[1772600555895,0.94931397,1960.8,1960.7,0.0011]
[1772600557069,0.94931397,1961.0,1960.7,0.0011]
[1772600557270,2.54931397,1960.9,1960.7,0.0011]
[1772600557471,0.94931397,1960.8,1960.5,0.001]
[1772600559086,1.601,1960.8,1960.5,0.001]
[1772600559696,2.55031397,1960.8,1960.5,0.001]
[1772600560601,1.601,1960.8,1960.5,0.001]
[1772600561700,2.87599172,1960.8,1960.5,0.001]
[1772600561896,0.94931397,1960.7,1960.5,0.001]
[1772600563293,2.22438469,1960.7,1960.5,0.001]
[1772600563481,0.94931397,1960.7,1960.5,0.001]
[1772600563804,2.22437197,1960.7,1960.5,0.001]
[1772600564480,2.87604102,1960.8,1960.5,0.001]
[1772600564695,1.27504102,1960.8,1960.5,0.001]
[1772600564885,2.22435499,1960.8,1960.5,0.001]
[1772600565087,2.22416442,1961.1,1960.6,0.37701198]
[1772600565500,0.94931397,1961.0,1960.5,0.001]
[1772600567093,0.94931397,1960.8,1960.5,0.001]
[1772600567407,2.22438859,1960.7,1960.6,0.0011]
[1772600568615,2.22438859,1960.7,1960.1,1.27654513]
[1772600568616,0.91406705,1960.6,1960.0,0.0011]
[1772600568826,0.91406705,1960.6,1960.1,0.36664553]
[1772600569398,2.87706089,1960.7,1960.2,1.63926401]
[1772600569616,2.18912794,1960.7,1960.2,1.63926401]
[1772600570911,0.91406705,1960.6,1960.0,0.0011]
[1772600572092,0.91406705,1960.6,1960.0,0.3568897]
[1772600573291,0.91406705,1960.4,1960.0,0.3568897]
[1772600573495,0.91406705,1960.4,1960.0,0.0011]
[1772600575913,5.1007396,1960.7,1960.0,0.34652506]
[1772600575914,0.91406705,1960.7,1960.0,0.34652506]
[1772600576212,0.91406705,1960.6,1960.0,0.34652506]
[1772600576787,0.91406705,1960.6,1960.0,0.0011]
[1772600578118,0.91406705,1960.4,1960.0,0.0011]
[1772600579292,0.91406705,1960.4,1960.1,0.0011]
[1772600580295,1.275315,1960.3,1960.1,0.0011]
[1772600580497,2.880315,1960.3,1960.1,0.0011]
[1772600580808,3.79438205,1960.3,1960.1,0.0011]
[1772600581489,0.91406705,1960.2,1959.9,0.0011]
[1772600581690,0.91406705,1960.0,1959.6,0.0011]
[1772600582298,2.18964233,1959.9,1959.6,0.0011]
[1772600583124,1.27555357,1960.0,1959.6,0.0011]
[1772600583307,1.27555357,1960.0,1959.6,0.3306254]
[1772600583925,1.606,1960.0,1959.6,0.3306254]
[1772600584298,1.606,1960.0,1959.6,1.60634865]
[1772600584494,2.18964233,1959.9,1959.6,0.0011]
[1772600584701,2.88156073,1960.0,1959.6,0.32830401]
[1772600585239,3.79562778,1960.0,1959.6,0.32830401]
[1772600585709,2.52006705,1960.0,1959.6,0.32830401]
[1772600586048,3.79557993,1960.0,1959.6,0.32830401]
[1772600586244,2.18957993,1960.0,1959.6,0.32830401]
[1772600586407,3.79557993,1960.0,1959.6,0.32830401]
[1772600586907,0.91406705,1960.0,1959.6,1.60406445]
[1772600587111,2.1895809,1960.0,1959.6,0.32830401]
[1772600588038,2.1895809,1960.0,1959.6,0.0011]
[1772600588736,0.91406705,1959.9,1959.6,0.0011]
[1772600589403,2.18953917,1960.1,1959.6,0.31714293]
[1772600589631,1.607,1960.0,1959.6,0.31714293]
[1772600589938,1.607,1960.1,1959.6,0.31714293]
[1772600590506,1.607,1960.1,1959.8,0.31388028]
[1772600591241,1.608,1960.4,1959.8,0.31388028]
[1772600591534,0.001,1960.1,1959.8,0.31388028]
[1772600592528,0.001,1960.1,1959.8,1.5894712]
[1772600592731,0.001,1960.1,1959.8,1.58951087]
[1772600592945,2.18905685,1960.8,1960.0,0.30653738]
[1772600593146,0.91406705,1960.7,1960.0,0.30653738]
[1772600593548,0.91406705,1960.6,1959.7,1.27674548]
[1772600593842,0.91406705,1960.6,1959.7,1.58328286]
[1772600594406,0.91406705,1960.4,1959.7,0.30763738]
[1772600594609,2.18938205,1960.3,1959.7,0.30763738]
[1772600594823,1.275315,1960.3,1959.7,0.30763738]
[1772600595029,2.18938205,1960.3,1959.7,0.30763738]
[1772600595456,1.275315,1960.3,1959.7,1.58334198]
[1772600595735,0.91406705,1960.2,1959.7,1.58334198]
[1772600595925,0.91406705,1960.6,1959.8,0.30042159]
[1772600596140,2.52206705,1960.4,1959.8,0.30042159]
[1772600596534,2.18923003,1960.6,1960.0,0.30042159]
[1772600596716,1.608,1960.4,1960.0,0.30042159]
[1772600597036,2.52206705,1960.5,1960.0,0.30042159]
[1772600597729,0.91406705,1960.4,1960.0,0.30042159]
[1772600598133,0.91406705,1960.4,1959.8,1.57207995]
[1772600598525,2.18936342,1960.4,1959.9,0.29452195]
[1772600598722,0.88517891,1960.3,1959.7,0.0011]
[1772600599132,0.88517891,1960.1,1959.7,0.0011]
[1772600601644,0.86981196,1959.9,1959.7,0.0011]
[1772600602151,1.2755102,1960.0,1959.0,0.2862537]
[1772600602152,0.86981196,1959.7,1959.0,0.2862537]
[1772600603722,0.86981196,1959.7,1958.5,0.28444149]
[1772600603723,0.86981196,1959.5,1958.5,0.28444149]
[1772600603916,0.91283506,1958.6,1957.5,0.38334934]
[1772600604122,2.60431446,1959.0,1957.1,1.27740023]
[1772600604123,1.30215723,1958.1,1957.1,1.27740023]
[1772600604748,3.04641783,1958.0,1957.1,1.27740023]
[1772600604955,0.91283506,1958.1,1957.1,1.27740023]
[1772600605843,0.91283506,1958.1,1957.0,5.10960094]
[1772600605844,2.1896224,1958.1,1957.0,5.10960094]
[1772600606054,1.27673022,1958.2,1957.1,1.30215723]
[1772600606220,10.45333428,1958.5,1957.5,1.30215723]
[1772600606221,0.91283506,1958.5,1957.5,1.30215723]
[1772600606424,2.18922466,1958.7,1957.7,1.30215723]
[1772600608249,2.18922466,1958.7,1957.8,1.2769435]
[1772600609026,0.91283506,1958.6,1957.7,1.27695983]
[1772600610569,1.2764871,1958.5,1957.7,1.30215723]
[1772600611552,1.27635676,1958.7,1957.7,1.30215723]
[1772600612631,1.27635676,1958.7,1957.8,1.2769435]
[1772600613140,1.27633781,1958.8,1957.9,1.30215723]
[1772600613340,2.18903528,1959.0,1958.1,3.56822126]
[1772600613539,0.91283506,1958.9,1957.8,1.2769435]
[1772600613749,1.27620022,1959.0,1958.1,1.30215723]
[1772600614061,1.27620022,1959.0,1958.1,3.56822126]
[1772600614652,1.27620022,1959.0,1958.2,1.27668266]
[1772600614860,2.18903528,1959.0,1958.2,1.27668266]
[1772600615060,1.27620022,1959.0,1958.1,3.54276404]
[1772600615281,0.91283506,1958.8,1957.9,1.27684639]
[1772600615565,0.91283506,1958.8,1957.8,1.27799941]
[1772600615866,0.91283506,1958.8,1957.8,2.58015664]
[1772600617031,1.27635676,1958.7,1957.8,2.58015664]
[1772600617229,2.18919182,1958.7,1957.8,2.58015664]
[1772600618530,2.18919182,1958.7,1957.8,1.27799941]
[1772600619186,2.18306343,1958.7,1957.8,0.0011]
[1772600620163,0.91283506,1958.6,1957.8,3.8711]
[1772600620739,1.27022837,1958.7,1957.8,3.8711]
[1772600621640,2.18896636,1959.1,1958.2,1.82599914]
[1772600622082,0.91283506,1959.1,1958.2,1.82599914]
[1772600622860,0.91283506,1959.1,1958.1,2.26606403]
[1772600623263,0.91283506,1959.1,1958.1,6.13606403]
[1772600623669,2.1888474,1959.3,1958.2,3.1026818]
[1772600623875,1.27595029,1959.4,1958.2,3.1026818]
[1772600624439,2.18878535,1959.4,1958.2,3.1026818]
[1772600624638,0.91283506,1959.4,1958.2,3.1026818]
[1772600624975,2.18873609,1959.4,1958.2,3.1026818]
[1772600625269,0.91283506,1959.3,1958.2,3.1026818]
[1772600625664,1.27603103,1959.2,1958.2,3.1026818]
[1772600626038,0.91283506,1959.3,1958.2,3.1026818]
[1772600626568,1.27593704,1959.4,1958.2,3.1026818]
[1772600626880,0.91283506,1959.5,1958.5,1.82599914]
[1772600627062,0.91283506,1959.7,1958.8,1.82599914]
[1772600627443,2.18855332,1959.7,1958.8,1.82599914]
[1772600627780,0.001,1959.2,1958.9,1.27622645]
[1772600628068,2.18841173,1959.9,1958.9,1.27622645]
[1772600628245,0.91283506,1959.9,1958.9,1.27622645]
[1772600629037,0.91283506,1960.1,1959.1,1.82599914]
[1772600629238,0.91283506,1960.1,1959.0,1.82599914]
[1772600629653,0.91283506,1960.1,1959.1,1.27609616]
[1772600629967,0.001,1960.3,1959.3,1.82599914]
[1772600630375,3.03572399,1960.3,1959.3,1.82599914]
[1772600630549,0.001,1960.3,1959.3,3.40099914]
[1772600630746,0.91283506,1960.2,1959.3,1.575]
[1772600631854,0.001,1960.3,1959.4,1.27590078]
[1772600633059,0.001,1960.3,1959.5,1.82599914]
[1772600633873,0.001,1960.3,1959.6,1.27577056]
[1772600635753,0.91383506,1960.3,1959.6,1.27577056]
[1772600638195,0.001,1960.3,1959.6,1.27577056]
[1772600639592,0.001,1960.2,1959.6,1.27577056]
[1772600640384,0.91283506,1960.7,1959.8,1.82599914]
[1772600640558,2.18880368,1960.9,1959.8,1.82599914]
[1772600641884,2.18880368,1960.9,1959.9,3.87]
[1772600642082,0.91283506,1960.8,1959.9,3.87]
[1772600642984,2.18783131,1960.8,1960.0,1.2755102]
[1772600644686,0.001,1960.9,1960.1,1.82599914]
[1772600644987,0.001,1960.9,1960.4,1.82599914]
[1772600645355,0.91383506,1960.9,1960.2,1.27538006]
[1772600647096,0.91383506,1960.9,1960.1,7.68598339]
[1772600647097,0.001,1960.9,1960.1,7.68598339]
[1772600647299,0.001,1960.9,1960.3,1.82599914]
[1772600649076,0.91283506,1961.3,1960.4,1.27524994]
[1772600649273,0.91283506,1961.3,1960.6,1.82599914]
[1772600649794,0.91283506,1961.5,1960.6,1.82599914]
[1772600651099,0.91283506,1961.4,1960.7,1.27505482]
[1772600651594,0.91283506,1961.4,1960.2,5.10126183]
[1772600651897,0.91283506,1961.4,1960.3,1.82599914]
[1772600652066,0.91283506,1961.4,1960.6,1.82599914]
[1772600652468,0.001,1960.8,1960.6,1.82599914]
[1772600652688,0.91283506,1961.4,1960.6,1.82599914]
[1772600653095,0.91283506,1961.4,1960.7,1.27505482]
[1772600653302,0.91383506,1961.6,1960.9,1.82599914]
[1772600653906,2.18831375,1961.6,1960.7,1.27505482]
[1772600654081,0.91383506,1961.6,1960.7,1.27505482]
[1772600655182,0.91383506,1961.6,1960.6,5.1002193]
[1772600655383,0.91383506,1961.6,1960.8,1.8207707]
[1772600657080,0.91383506,1961.6,1960.6,5.1002193]
[1772600657705,0.91283506,1961.5,1960.6,5.1002193]
[1772600658313,0.91283506,1961.5,1960.6,8.9702193]
[1772600660014,0.001,1961.6,1960.6,8.9702193]
[1772600660215,0.91383506,1961.6,1960.6,8.9702193]
[1772600660427,0.91283506,1961.5,1960.6,8.9702193]
[1772600661598,0.91283506,1961.3,1960.6,3.87]
[1772600661799,0.91283506,1961.0,1960.6,5.1451182]
[1772600661998,0.91283506,1961.0,1960.5,1.27514107]
[1772600663539,0.91283506,1961.0,1960.1,5.4338432]
[1772600663751,0.91283506,1961.0,1960.2,8.97142379]
[1772600663906,0.91283506,1960.9,1960.2,8.97142379]
[1772600664445,0.91283506,1961.1,1960.2,8.97142379]
[1772600665260,0.91283506,1961.1,1960.5,0.0011]
[1772600665429,0.91228506,1960.9,1960.5,0.0011]
[1772600665970,0.91228506,1960.7,1960.5,0.0011]
[1772600667998,0.91228506,1960.6,1960.5,0.0011]
[1772600668361,0.91228506,1960.5,1959.8,1.27674037]
[1772600668706,0.91228506,1960.3,1959.8,1.27674037]
[1772600669887,0.91228506,1960.3,1959.8,0.0011]
[1772600670187,5.28312606,1960.7,1959.8,0.0011]
[1772600670188,0.91228506,1960.1,1959.8,0.0011]
[1772600670985,0.91228506,1960.1,1959.6,0.0011]
[1772600671685,0.91173506,1960.3,1959.6,0.0011]
[1772600672262,0.91173506,1960.6,1959.6,1.27687056]
[1772600672581,3.9551284,1960.5,1959.6,1.27687056]
[1772600672770,0.91173506,1960.5,1959.6,1.27687056]
[1772600673373,0.91173506,1960.5,1959.6,5.14687056]
[1772600674683,0.91173506,1960.3,1959.6,1.27687056]
[1772600675256,0.91173506,1960.3,1959.6,0.0011]
[1772600675792,0.91173506,1960.3,1959.6,1.27686515]
[1772600677090,0.91173506,1960.5,1959.8,1.82599914]
[1772600677294,0.001,1960.2,1959.7,0.0011]
[1772600677593,0.91273506,1960.2,1959.7,3.8711]
[1772600679292,0.91273506,1960.2,1959.7,5.14674936]
[1772600679897,0.91173506,1960.1,1959.7,5.14674936]
[1772600681067,0.91173506,1960.1,1959.7,3.8711]
[1772600681392,0.91173506,1960.0,1959.7,5.14680327]
[1772600681599,0.91273506,1960.2,1959.7,5.14680327]
[1772600683170,0.001,1960.2,1959.7,6.44885209]
[1772600684284,0.001,1960.2,1959.7,5.14680327]
[1772600684795,0.001,1960.2,1959.7,6.44885209]
[1772600685298,0.91273506,1960.2,1959.7,5.14680327]
[1772600686410,0.001,1960.2,1959.7,1.27680327]
[1772600686674,0.001,1960.2,1959.8,1.30204882]
[1772600687397,0.001,1960.2,1959.9,1.27557528]
[1772600689510,0.001,1960.1,1959.9,1.27557528]
[1772600690617,0.001,1960.2,1959.9,1.27557528]
[1772600693010,0.001,1960.2,1960.0,0.0113881]
[1772600693707,0.001,1960.2,1960.1,1.27544513]
[1772600694081,3.28753809,1960.8,1960.2,2.09590586]
[1772600694284,3.28753809,1960.8,1960.4,2.09590586]
[1772600694482,2.44032415,1960.8,1960.5,0.79385704]
[1772600694697,4.50291534,1961.0,1960.5,0.79385704]
[1772600694911,3.05088994,1960.9,1960.5,0.79385704]
[1772600695216,0.84721394,1961.0,1960.5,0.79385704]
[1772600695592,2.1219487,1961.2,1960.6,2.0689769]
[1772600696212,0.84721394,1961.1,1960.6,1.27511986]
[1772600697215,0.84721394,1961.4,1960.7,0.79385704]
[1772600698514,0.84721394,1961.4,1960.8,2.06884684]
[1772600698718,0.84721394,1961.4,1960.9,0.79385704]
[1772600700423,0.001,1961.5,1961.1,0.79385704]
[1772600701206,0.001,1961.5,1961.2,1.27472975]
[1772600701415,0.001,1961.3,1961.2,2.06858679]
[1772600701704,0.001,1961.5,1961.2,2.06858679]
[1772600702097,0.84821394,1961.5,1961.0,1.27485976]
[1772600702719,0.84821394,1961.5,1960.9,2.0687814]
[1772600703035,0.84821394,1961.5,1960.8,5.14497739]
[1772600703195,0.84721394,1961.3,1960.8,5.14497739]
[1772600703397,0.84721394,1961.3,1960.8,3.87]
[1772600704114,0.84721394,1961.3,1960.8,5.1449878]
[1772600704296,0.84721394,1961.3,1960.7,1.27500412]
[1772600704624,3.69778446,1961.5,1960.8,0.79385704]
[1772600705701,3.69778446,1961.5,1961.0,0.79385704]
[1772600705702,0.001,1961.5,1961.0,0.79385704]
[1772600705893,0.001,1961.6,1961.1,0.79385704]
[1772600706298,0.001,1961.6,1961.3,0.79385704]
[1772600707802,0.001,1961.6,1961.4,1.27459977]
[1772600708704,0.001,1961.6,1961.3,2.06851707]
[1772600711118,0.001,1961.6,1961.3,1.27466003]
[1772600711925,0.001,1961.6,1961.2,5.89251609]
[1772600713224,0.001,1961.6,1961.3,0.001]
[1772600713534,0.002,1961.5,1961.3,0.001]
[1772600713709,0.002,1961.5,1961.3,0.79485704]
[1772600713910,0.001,1961.6,1961.4,2.06845681]
[1772600715218,0.002,1962.0,1961.4,2.06845681]
[1772600715219,0.002,1962.2,1961.5,0.79385704]
[1772600715417,2.52945366,1963.8,1962.2,0.79385704]
[1772600715418,0.84721394,1963.5,1962.2,0.79385704]
[1772600715733,0.84721394,1963.5,1962.3,0.79385704]
[1772600715734,0.84721394,1963.4,1962.3,0.79385704]
[1772600715932,0.84721394,1963.2,1962.4,1.27395026]
[1772600716241,0.84721394,1963.2,1962.0,0.79385704]
[1772600716453,0.84721394,1963.2,1962.0,2.06806702]
[1772600716813,2.40121394,1963.2,1962.1,0.79385704]
[1772600717035,0.84721394,1963.1,1962.1,0.79385704]
[1772600717533,0.84721394,1963.1,1962.2,0.79385704]
[1772600718108,0.80068371,1962.9,1962.2,1.27408011]
[1772600718310,0.80068371,1962.7,1961.9,0.53230081]
[1772600718714,0.80068371,1962.5,1961.9,0.53230081]